fUSD/lending_fUSD_20240520
["ID","MTS","AMOUNT","RATE_DAILY","PERIOD"]
[327558506,1716228640392,-151.0,0.0001299,2]
[327558507,1716228640401,-151.0,0.0001299,2]
[327558508,1716228640410,-584.274241,0.0001299,2]
[327558509,1716228640420,-402.449412,0.0001299,2]
[327558510,1716228640429,-155.32894,0.0001299,2]
[327558511,1716228640438,-402.449412,0.0001299,2]
[327558512,1716228640448,-489.746798,0.0001299,2]
[327558513,1716228640457,-489.746798,0.0001299,2]
[327558514,1716228640466,-201.194153,0.0001299,2]
[327558515,1716228640476,-201.194153,0.0001299,2]
[327558516,1716228640485,-151.0,0.0001299,2]
[327558517,1716228640495,-151.0,0.0001299,2]
[327558518,1716228640505,-151.0,0.0001299,2]
[327558519,1716228640515,-151.0,0.0001299,2]
[327558520,1716228640524,-253.821473,0.0001299,2]
[327558521,1716228640534,-253.821473,0.0001299,2]
[327558522,1716228640544,-151.0,0.0001299,2]
[327558523,1716228640553,-152.458043,0.0001299,2]
[327558524,1716228640563,-151.282955,0.0001299,2]
[327558525,1716228640573,-151.0,0.0001299,2]
[327558526,1716228640582,-151.0,0.0001299,2]
[327558527,1716228640591,-151.0,0.0001299,2]
[327558528,1716228640601,-151.0,0.0001299,2]
[327558529,1716228640611,-151.0,0.0001299,2]
[327558530,1716228640622,-151.0,0.0001299,2]
[327558531,1716228640631,-166.385137,0.0001299,2]
[327558532,1716228640641,-166.385137,0.0001299,2]
[327558533,1716228640651,-151.0,0.0001299,2]
[327558534,1716228640660,-151.0,0.0001299,2]
[327558535,1716228640670,-151.0,0.0001299,2]
[327558536,1716228640679,-151.0,0.0001299,2]
[327558537,1716228640689,-151.0,0.0001299,2]
[327558538,1716228640700,-151.0,0.0001299,2]
[327558539,1716228640710,-153.500544,0.0001299,2]
[327558540,1716228640719,-151.0,0.0001299,2]
[327558541,1716228640732,-151.0,0.0001299,2]
[327558542,1716228640742,-151.0,0.0001299,2]
[327558543,1716228640751,-151.0,0.0001299,2]
[327558544,1716228640760,-229.59022014,0.0001299,2]
[327558545,1716228640769,-151.0,0.0001299,2]
[327558546,1716228640779,-164.3,0.0001299,2]
[327558547,1716228640789,-151.0,0.00012999,2]
[327558548,1716228640798,-151.0,0.00012999,2]
[327558549,1716228640808,-151.0,0.00012999,2]
[327558550,1716228640818,-151.0,0.00012999,2]
[327558551,1716228640827,-151.0,0.00012999,2]
[327558552,1716228640836,-293243.32385048,0.00013,2]
[327558553,1716228640846,-523115.83073927,0.00013,2]
[327558554,1716228640857,-457.74988423,0.00013,2]
[327558555,1716228640868,-974231.63082391,0.00013,2]
[327558556,1716228640878,-151.0,0.00013,2]
[327558557,1716228640887,-151.0,0.00013,2]
[327558558,1716228640896,-151.914558,0.00013,2]
[327558559,1716228640920,-151.812446,0.00013,2]
[327558560,1716228640930,-151.0,0.00013,2]
[327558561,1716228640939,-151.804803,0.00013,2]
[327558562,1716228640949,-151.0,0.00013,2]
[327558563,1716228640959,-154.647705,0.00013,2]
[327558564,1716228640968,-151.0,0.00013,2]
[327558565,1716228640979,-151.0,0.00013,2]
[327558566,1716228640989,-151.0,0.00013,2]
[327558567,1716228640998,-151.0,0.00013,2]
[327558568,1716228641009,-151.0,0.00013,2]
[327558569,1716228641018,-151.0,0.00013,2]
[327558570,1716228641027,-151.0,0.00013,2]
[327558571,1716228641037,-151.0,0.00013,2]
[327558572,1716228641047,-151.0,0.00013,2]
[327558573,1716228641056,-151.0,0.00013,2]
[327558574,1716228641066,-171.758072,0.00013,2]
[327558575,1716228641075,-151.0,0.00013,2]
[327558576,1716228641085,-202.51112992,0.00013,2]
[327558577,1716228641094,-151.0,0.00013,2]
[327558583,1716228641251,-151.0,0.00013,2]
[327558584,1716228641261,-156.924621,0.00013,2]
[327558585,1716228641271,-320.811415,0.00013,2]
[327558586,1716228641280,-320.811415,0.00013,2]
[327558587,1716228641290,-320.811415,0.00013,2]
[327558588,1716228641300,-219.225952,0.00013,2]
[327558589,1716228641309,-219.225952,0.00013,2]
[327558590,1716228641319,-219.225952,0.00013,2]
[327558591,1716228641330,-320.811415,0.00013,2]
[327558592,1716228641339,-320.811415,0.00013,2]
[327558593,1716228641348,-320.811415,0.00013,2]
[327558594,1716228641358,-151.0,0.00013,2]
[327558595,1716228641367,-151.0,0.00013,2]
[327558596,1716228641376,-151.0,0.00013,2]
[327558597,1716228641386,-151.0,0.00013,2]
[327558598,1716228641395,-151.0,0.00013,2]
[327558599,1716228641404,-151.0,0.00013,2]
[327558600,1716228641414,-151.0,0.00013,2]
[327558601,1716228641422,-151.0,0.00013,2]
[327558602,1716228641432,-162.282494,0.00013,2]
[327558603,1716228641441,-151.0,0.00013,2]
[327558604,1716228641451,-151.0,0.00013,2]
[327558605,1716228641460,-273.805732,0.00013,2]
[327558606,1716228641469,-151.0,0.00013,2]
[327558607,1716228641479,-298.717899,0.00013,2]
[327558608,1716228641489,-290.115536,0.00013,2]
[327558609,1716228641498,-290.115536,0.00013,2]
[327558610,1716228641507,-290.115536,0.00013,2]
[327558611,1716228641517,-290.115536,0.00013,2]
[327558612,1716228641526,-290.115536,0.00013,2]
[327558613,1716228641536,-290.115536,0.00013,2]
[327558614,1716228641545,-220.323989,0.00013,2]
[327558615,1716228641555,-220.323989,0.00013,2]
[327558616,1716228641564,-220.323989,0.00013,2]
[327558617,1716228641573,-220.323989,0.00013,2]
[327558618,1716228641583,-220.323989,0.00013,2]
[327558619,1716228641593,-220.323989,0.00013,2]
[327558620,1716228641601,-262.345368,0.00013,2]
[327558621,1716228641611,-262.345368,0.00013,2]
[327558622,1716228641621,-262.345368,0.00013,2]
[327558623,1716228641631,-262.345368,0.00013,2]
[327558624,1716228641640,-262.345368,0.00013,2]
[327558625,1716228641650,-262.345368,0.00013,2]
[327558626,1716228641659,-284.09086,0.00013,2]
[327558627,1716228641668,-284.09086,0.00013,2]
[327558628,1716228641677,-284.09086,0.00013,2]
[327558629,1716228641686,-284.09086,0.00013,2]
[327558630,1716228641696,-284.09086,0.00013,2]
[327558631,1716228641705,-284.09086,0.00013,2]
[327558632,1716228641715,-151.0,0.00013,2]
[327558633,1716228641724,-151.0,0.00013,2]
[327558634,1716228641734,-151.0,0.00013,2]
[327558635,1716228641743,-288.706421,0.00013,2]
[327558636,1716228641752,-288.706421,0.00013,2]
[327558637,1716228641762,-288.706421,0.00013,2]
[327558638,1716228641771,-151.0,0.00013,2]
[327558639,1716228641780,-154.859679,0.00013,2]
[327558640,1716228641789,-288.706421,0.00013,2]
[327558641,1716228641799,-438.197532,0.00013,2]
[327558642,1716228641808,-438.197532,0.00013,2]
[327558643,1716228641817,-288.706421,0.00013,2]
[327558644,1716228641826,-438.197532,0.00013,2]
[327558645,1716228641835,-288.706421,0.00013,2]
[327558646,1716228641845,-438.197532,0.00013,2]
[327558647,1716228641854,-438.197532,0.00013,2]
[327558648,1716228641863,-438.197532,0.00013,2]
[327558649,1716228641872,-151.0,0.00013,2]
[327558650,1716228641881,-151.0,0.00013,2]
[327558651,1716228641890,-151.0,0.00013,2]
[327558652,1716228641899,-151.0,0.00013,2]
[327558653,1716228641909,-151.0,0.00013,2]
[327558654,1716228641919,-154.83423,0.00013,2]
[327558655,1716228641928,-584.274241,0.00013,2]
[327558656,1716228641937,-584.274241,0.00013,2]
[327558657,1716228641947,-584.274241,0.00013,2]
[327558658,1716228641956,-151.0,0.00013,2]
[327558659,1716228641966,-151.0,0.00013,2]
[327558660,1716228641975,-151.0,0.00013,2]
[327558661,1716228641984,-151.0,0.00013,2]
[327558662,1716228641994,-151.0,0.00013,2]
[327558663,1716228642003,-584.274241,0.00013,2]
[327558664,1716228642012,-151.0,0.00013,2]
[327558665,1716228642021,-584.274241,0.00013,2]
[327558666,1716228642031,-584.274241,0.00013,2]
[327558667,1716228642041,-402.449412,0.00013,2]
[327558668,1716228642051,-402.449412,0.00013,2]
[327558669,1716228642060,-402.449412,0.00013,2]
[327558670,1716228642070,-402.449412,0.00013,2]
[327558671,1716228642079,-402.449412,0.00013,2]
[327558672,1716228642090,-402.449412,0.00013,2]
[327558673,1716228642100,-489.746798,0.00013,2]
[327558674,1716228642109,-489.746798,0.00013,2]
[327558675,1716228642119,-489.746798,0.00013,2]
[327558676,1716228642128,-489.746798,0.00013,2]
[327558677,1716228642138,-489.746798,0.00013,2]
[327558678,1716228642147,-489.746798,0.00013,2]
[327558679,1716228642158,-201.194153,0.00013,2]
[327558680,1716228642169,-201.194153,0.00013,2]
[327558681,1716228642181,-201.194153,0.00013,2]
[327558682,1716228642203,-201.194153,0.00013,2]
[327558683,1716228642222,-201.194153,0.00013,2]
[327558684,1716228642243,-201.194153,0.00013,2]
[327558685,1716228642265,-151.0,0.00013,2]
[327558686,1716228642284,-182.763188,0.00013,2]
[327558687,1716228642305,-151.0,0.00013,2]
[327558688,1716228642319,-151.0,0.00013,2]
[327558689,1716228642339,-151.0,0.00013,2]
[327558690,1716228642359,-151.0,0.00013,2]
[327558691,1716228642375,-195.736738,0.00013,2]
[327558692,1716228642390,-151.0,0.00013,2]
[327558693,1716228642408,-151.0,0.00013,2]
[327558694,1716228642425,-151.0,0.00013,2]
[327558695,1716228642438,-253.821473,0.00013,2]
[327558696,1716228642453,-253.821473,0.00013,2]
[327558697,1716228642469,-253.821473,0.00013,2]
[327558698,1716228642486,-253.821473,0.00013,2]
[327558699,1716228642506,-253.821473,0.00013,2]
[327558700,1716228642522,-253.821473,0.00013,2]
[327558701,1716228642537,-151.0,0.00013,2]
[327558702,1716228642554,-151.0,0.00013,2]
[327558703,1716228642569,-151.0,0.00013,2]
[327558704,1716228642585,-151.0,0.00013,2]
[327558705,1716228642600,-151.0,0.00013,2]
[327558706,1716228642615,-151.0,0.00013,2]
[327558707,1716228642630,-233.02919,0.00013,2]
[327558708,1716228642647,-151.0,0.00013,2]
[327558709,1716228642662,-151.0,0.00013,2]
[327558710,1716228642677,-151.0,0.00013,2]
[327558711,1716228642692,-151.0,0.00013,2]
[327558712,1716228642707,-225.708701,0.00013,2]
[327558713,1716228642723,-151.0,0.00013,2]
[327558714,1716228642738,-151.0,0.00013,2]
[327558715,1716228642754,-151.0,0.00013,2]
[327558716,1716228642769,-241.246773,0.00013,2]
[327558717,1716228642785,-166.385137,0.00013,2]
[327558718,1716228642800,-166.385137,0.00013,2]
[327558719,1716228642816,-166.385137,0.00013,2]
[327558720,1716228642831,-166.385137,0.00013,2]
[327558721,1716228642847,-166.385137,0.00013,2]
[327558722,1716228642862,-166.385137,0.00013,2]
[327558723,1716228642877,-151.0,0.00013,2]
[327558724,1716228642893,-252.297509,0.00013,2]
[327558725,1716228642908,-151.0,0.00013,2]
[327558726,1716228642923,-151.0,0.00013,2]
[327558727,1716228642937,-151.0,0.00013,2]
[327558728,1716228642952,-151.0,0.00013,2]
[327558729,1716228642968,-151.0,0.00013,2]
[327558730,1716228642984,-151.0,0.00013,2]
[327558731,1716228642999,-151.0,0.00013,2]
[327558732,1716228643014,-151.0,0.00013,2]
[327558733,1716228643029,-151.0,0.00013,2]
[327558736,1716228643044,-151.0,0.00013,2]
[327558739,1716228643060,-151.0,0.00013,2]
[327558740,1716228643076,-151.0,0.00013,2]
[327558741,1716228643092,-151.0,0.00013,2]
[327558742,1716228643108,-151.0,0.00013,2]
[327558743,1716228643123,-292.296552,0.00013,2]
[327558744,1716228643139,-151.0,0.00013,2]
[327558745,1716228643158,-152.951039,0.00013,2]
[327558746,1716228643174,-151.0,0.00013,2]
[327558747,1716228643190,-151.0,0.00013,2]
[327558748,1716228643206,-151.0,0.00013,2]
[327558749,1716228643222,-151.0,0.00013,2]
[327558750,1716228643239,-1391.97,0.00013276,2]
[327558751,1716228643255,-1000.0,0.00013286,2]
[327558752,1716228643270,-1000.0,0.00013425,2]
[327558755,1716228643286,-221.47926676,0.00013599,2]
[327558758,1716228643301,-219.43,0.00013628,2]
[327558759,1716228643316,-1500.0,0.00013699,2]
[327558762,1716228643331,-151.0,0.00013699,2]
[327558764,1716228643347,-151.0,0.00013699,2]
[327558766,1716228643363,-151.0,0.00013699,2]
[327558767,1716228643379,-151.0,0.00013699,2]
[327558768,1716228643394,-151.0,0.00013699,2]
[327558769,1716228643410,-151.0,0.00013699,2]
[327558770,1716228643426,-151.0,0.00013699,2]
[327558771,1716228643444,-287.042657,0.00013699,2]
[327558772,1716228643459,-200.0,0.00013699,2]
[327558773,1716228643474,-500.0,0.00013699,2]
[327558774,1716228643489,-2751.0,0.00013699,2]
[327558775,1716228643504,-204.317187,0.00013699,2]
[327558776,1716228643519,-204.317187,0.00013699,2]
[327558777,1716228643534,-204.317187,0.00013699,2]
[327558778,1716228643550,-204.317187,0.00013699,2]
[327558779,1716228643565,-204.317187,0.00013699,2]
[327558781,1716228643580,-204.317187,0.00013699,2]
[327558782,1716228643595,-204.317187,0.00013699,2]
[327558783,1716228643611,-204.317187,0.00013699,2]
[327558784,1716228643628,-204.317187,0.00013699,2]
[327558785,1716228643637,-204.317187,0.00013699,2]
[327558786,1716228643646,-200.0,0.00013787,2]
[327558787,1716228643657,-247.29,0.00013973,2]
[327558788,1716228643931,-427.9,0.00013973,2]
[327558789,1716228643949,-229.92,0.00013973,2]
[327558790,1716228643958,-166.03775106,0.00014501,2]
[327558791,1716228643968,-1000.0,0.00014763,2]
[327558792,1716228643979,-257.65395905,0.00015,2]
[327558793,1716228643988,-618.8768531,0.00015,2]
[327558794,1716228643998,-67001.05143897,0.00015,2]
[327558795,1716228644007,-8565.0,0.00015,2]
[327558796,1716228644017,-300.0,0.00015068,2]
[327558797,1716228644027,-7931.98476049,0.00015093,2]
[327558798,1716228644037,-789.33756304,0.00015107,2]
[327558799,1716228644047,-200.0,0.00015166,2]
[327558800,1716228644056,-164.41248888,0.00015374,2]
[327558801,1716228644066,-219.43,0.00015892,2]
[327558802,1716228644076,-1391.97,0.00016016,2]
[327558803,1716228644086,-1000.0,0.00016239,2]
[327558804,1716228644096,-300.0,0.00016438,2]
[327558805,1716228644105,-200.0,0.00016544,2]
[327558806,1716228644115,-338.72,0.00017211,2]
[327558807,1716228644125,-1400.0,0.00017457,2]
[327558808,1716228644135,-1000.0,0.00017715,2]
[327558809,1716228644145,-7931.98476049,0.00017957,2]
[327558810,1716228644158,-688.07316,0.0001798,2]
[327558811,1716228644169,-158.43327398,0.00018,2]
[327558812,1716228644179,-166.03775106,0.00018106,2]
[327558813,1716228644189,-219.43,0.00018156,2]
[327558814,1716228644199,-789.33756304,0.00018186,2]
[327558815,1716228644209,-150.0,0.00019077,2]
[327558816,1716228644219,-200.6393933,0.00019178,7]
[327558817,1716228644229,-189.712844,0.00019178,2]
[327558818,1716228644241,-189.712844,0.00019178,2]
[327558819,1716228644251,-189.712844,0.00019178,2]
[327558820,1716228644260,-189.712844,0.00019178,2]
[327558821,1716228644270,-189.712844,0.00019178,2]
[327558822,1716228644279,-189.712844,0.00019178,2]
[327558823,1716228644289,-189.712844,0.00019178,2]
[327558824,1716228644298,-189.712844,0.00019178,2]
[327558825,1716228644308,-189.712844,0.00019178,2]
[327558826,1716228644317,-189.712844,0.00019178,2]
[327558828,1716228644326,-150.0,0.00019199,2]
[327558830,1716228644335,-150.0,0.00019212,2]
[327558832,1716228644345,-150.0,0.00019333,2]
[327558833,1716228644354,-665.02362507,0.00019348,2]
[327558835,1716228644364,-150.0,0.00019376,2]
[327558837,1716228644373,-150.0,0.00019441,2]
[327558839,1716228644383,-300.0,0.00019479,2]
[327558841,1716228644392,-10035.37042011,0.00019495,2]
[327558843,1716228644402,-500.0,0.00019495,2]
[327558845,1716228644411,-472.25625666,0.000195,2]
[327558847,1716228644420,-150.0,0.0001951,2]
[327558849,1716228644429,-1043.50527684,0.0001958,2]
[327558851,1716228644439,-500.0,0.0001958,2]
[327558853,1716228644448,-37472.32879125,0.0001958,2]
[327558855,1716228644458,-1039.06903091,0.0001958,2]
[327558856,1716228644467,-151.0,0.0001958,2]
[327558857,1716228644478,-151.0,0.0001958,2]
[327558858,1716228644487,-253.821473,0.0001958,2]
[327558859,1716228644497,-253.821473,0.0001958,2]
[327558860,1716228644507,-151.0,0.0001958,2]
[327558861,1716228644517,-151.0,0.0001958,2]
[327558862,1716228644527,-151.0,0.0001958,2]
[327558863,1716228644537,-282.155301,0.0001958,2]
[327558864,1716228644546,-166.385137,0.0001958,2]
[327558865,1716228644555,-166.385137,0.0001958,2]
[327558866,1716228644566,-151.0,0.0001958,2]
[327558867,1716228644575,-151.0,0.0001958,2]
[327558868,1716228644586,-151.0,0.0001958,2]
[327558869,1716228644596,-294.0,0.0001958,2]
[327558870,1716228644606,-155.400693,0.0001958,2]
[327558871,1716228644616,-204.317187,0.0001958,2]
[327558872,1716228644626,-204.317187,0.0001958,2]
[327558873,1716228644636,-151.0,0.0001958,2]
[327558874,1716228644645,-151.0,0.0001958,2]
[327558875,1716228644655,-19615.65373925,0.000196,2]
[327558876,1716228644666,-716.26,0.000196,2]
[327558877,1716228644675,-596.57,0.000196,2]
[327558878,1716228644686,-151.0,0.000196,2]
[327558879,1716228644695,-163.946998,0.000196,2]
[327558880,1716228644704,-297.182592,0.000196,2]
[327558881,1716228644714,-288.706421,0.000196,2]
[327558882,1716228644726,-438.197532,0.000196,2]
[327558883,1716228644737,-288.706421,0.000196,2]
[327558884,1716228644746,-438.197532,0.000196,2]
[327558885,1716228644756,-151.0,0.000196,2]
[327558886,1716228644766,-584.274241,0.000196,2]
[327558887,1716228644776,-151.0,0.000196,2]
[327558888,1716228644785,-151.0,0.000196,2]
[327558889,1716228644795,-584.274241,0.000196,2]
[327558890,1716228644804,-402.449412,0.000196,2]
[327558891,1716228644814,-402.449412,0.000196,2]
[327558892,1716228644824,-489.746798,0.000196,2]
[327558893,1716228644834,-489.746798,0.000196,2]
[327558894,1716228644844,-201.194153,0.000196,2]
[327558895,1716228644853,-201.194153,0.000196,2]
[327558896,1716228644863,-189.712844,0.000196,2]
[327558897,1716228644873,-189.712844,0.000196,2]
[327558898,1716228644882,-150.0,0.000198,2]
[327558899,1716228644892,-150.0,0.0001981,2]
[327558900,1716228644902,-164.41248888,0.00019853,2]
[327558901,1716228644923,-150.0,0.00019887,2]
[327558902,1716228644933,-2000.0,0.0001999,2]
[327558903,1716228644943,-200.0,0.0001999,2]
[327558904,1716228644953,-200.0,0.0001999,2]
[327558905,1716228644962,-1262.82225324,0.0002,2]
[327558906,1716228644972,-627.77142105,0.0002,2]
[327558907,1716228644984,-1773.05966905,0.0002,2]
[327558908,1716228644994,-6238.00785367,0.0002,2]
[327558909,1716228645003,-862.07894367,0.0002,2]
[327558910,1716228645013,-546.89106013,0.0002,2]
[327558911,1716228645022,-5184.68610729,0.0002,2]
[327558912,1716228645031,-155.0,0.0002,2]
[327558913,1716228645041,-155.0,0.0002,2]
[327558914,1716228645051,-151.0,0.0002,2]
[327558915,1716228645061,-320.811415,0.0002,2]
[327558916,1716228645070,-219.225952,0.0002,2]
[327558917,1716228645080,-320.811415,0.0002,2]
[327558918,1716228645090,-150.0,0.00020172,2]
[327558919,1716228645098,-2000.0,0.0002019,2]
[327558920,1716228645108,-200.0,0.0002019,2]
[327558921,1716228645118,-200.0,0.0002019,2]
[327558922,1716228645127,-290.115536,0.0002019,2]
[327558923,1716228645136,-290.115536,0.0002019,2]
[327558924,1716228645146,-220.323989,0.0002019,2]
[327558925,1716228645160,-220.323989,0.0002019,2]
[327558926,1716228645169,-151.0,0.0002019,2]
[327558927,1716228645180,-262.345368,0.0002019,2]
[327558928,1716228645189,-262.345368,0.0002019,2]
[327558929,1716228645201,-284.09086,0.0002019,2]
[327558930,1716228645210,-284.09086,0.0002019,2]
[327558931,1716228645220,-150.0,0.00020244,2]
[327558932,1716228645232,-150.0,0.0002032,2]
[327558933,1716228645241,-150.0,0.00020345,2]
[327558934,1716228645251,-2000.0,0.00020392,2]
[327558935,1716228645260,-200.0,0.00020392,2]
[327558936,1716228645270,-200.0,0.00020392,2]
[327558937,1716228645279,-150.0,0.00020417,2]
[327558938,1716228645289,-219.43,0.00020419,2]
[327558939,1716228645299,-167.0,0.00020436,2]
[327558940,1716228645308,-247.29,0.00020447,2]
[327558941,1716228645318,-427.9,0.00020447,2]
[327558942,1716228645328,-229.92,0.00020447,2]
[327558943,1716228645338,-1400.0,0.00020457,2]
[327558944,1716228645347,-150.0,0.00020457,2]
[327558945,1716228645356,-150.0,0.000205,2]
[327558946,1716228645366,-150.0,0.00020508,2]
[327558947,1716228645376,-150.0,0.00020508,2]
[327558948,1716228645386,-150.0,0.00020514,2]
[327558949,1716228645395,-1842.84733006,0.00020596,2]
[327558950,1716228645405,-200.0,0.00020596,2]
[327558951,1716228645414,-200.0,0.00020596,2]
[327558952,1716228645423,-150.0,0.0002079,2]
[327558953,1716228645433,-200.0,0.00020802,2]
[327558954,1716228645443,-7931.98476049,0.00020822,2]
[327558955,1716228645453,-150.0,0.00020887,2]
[327558956,1716228645462,-1200.0,0.000209,7]
[327558957,1716228645472,-150.0,0.00020956,2]
[327558958,1716228645483,-150.0,0.00020982,2]
[327558959,1716228645493,-717.73732659,0.00021,2]
[327558960,1716228645503,-750.0,0.00021,2]
[327558961,1716228645512,-750.0,0.00021,2]
[327558962,1716228645522,-716.26,0.00021,2]
[327558963,1716228645532,-596.57,0.00021,2]
[327558964,1716228645542,-150.0,0.00021,2]
[327558965,1716228645552,-150.0,0.00021056,2]
[327558966,1716228645563,-150.0,0.00021084,2]
[327558967,1716228645573,-150.0,0.00021159,2]
[327558968,1716228645583,-150.0,0.00021199,2]
[327558969,1716228645592,-298.78407833,0.000212,2]
[327558970,1716228645601,-854.65222131,0.000212,2]
[327558971,1716228645612,-591.99931815,0.000212,2]
[327558972,1716228645622,-151.0,0.000212,2]
[327558973,1716228645634,-155.16654335,0.00021203,2]
[327558974,1716228645643,-151.18543486,0.0002121,2]
[327558975,1716228645654,-153.93988001,0.00021221,2]
[327558976,1716228645663,-789.33756304,0.00021265,2]
[327558977,1716228645673,-413.4673435,0.0002127,2]
[327558978,1716228645683,-153.87433227,0.0002128,2]
[327558979,1716228645692,-10000.0,0.00021332,2]
[327558980,1716228645703,-155.0,0.00021396,2]
[327558981,1716228645712,-267.82545389,0.00021397,2]
[327558982,1716228645722,-194.52498407,0.00021397,2]
[327558983,1716228645733,-1380.16157324,0.00021397,2]
[327558984,1716228645743,-161.35639647,0.00021397,2]
[327558985,1716228645752,-8397.39625817,0.00021397,2]
[327558986,1716228645762,-155.0,0.00021397,2]
[327558987,1716228645772,-156.34895342,0.00021398,2]
[327558988,1716228645782,-488.01922742,0.00021398,2]
[327558989,1716228645792,-890.90790075,0.00021398,2]
[327558990,1716228645802,-155.23820873,0.00021398,3]
[327558991,1716228645811,-155.0,0.00021398,2]
[327558992,1716228645820,-378.20844102,0.00021398,2]
[327558993,1716228645830,-19623.11442373,0.00021398,2]
[327558994,1716228645840,-326.75309456,0.00021398,2]
[327558995,1716228645849,-282.49599103,0.00021398,2]
[327558996,1716228645859,-3279.04154518,0.00021398,2]
[327558997,1716228645868,-313.92509782,0.00021398,2]
[327558998,1716228645878,-25000.0,0.000214,5]
[327558999,1716228645888,-486.0,0.000214,4]
[327559000,1716228645897,-578.0,0.000214,4]
[327559001,1716228645915,-343.0,0.000214,2]
[327559002,1716228645925,-1338.34818995,0.00021427,2]
[327559003,1716228645934,-29551.12109849,0.0002145,2]
[327559007,1716228646704,-57400.09520286,0.0002145,2]
[327559008,1716228646714,-151.0,0.0002145,2]
[327559009,1716228646723,-288.706421,0.0002145,2]
[327559010,1716228646733,-438.197532,0.0002145,2]
[327559011,1716228646743,-288.706421,0.0002145,2]
[327559012,1716228646754,-438.197532,0.0002145,2]
[327559013,1716228646763,-151.0,0.0002145,2]
[327559014,1716228646772,-584.274241,0.0002145,2]
[327559015,1716228646782,-151.0,0.0002145,2]
[327559016,1716228646792,-151.0,0.0002145,2]
[327559017,1716228646801,-584.274241,0.0002145,2]
[327559018,1716228646810,-402.449412,0.0002145,2]
[327559019,1716228646820,-402.449412,0.0002145,2]
[327559020,1716228646830,-489.746798,0.0002145,2]
[327559021,1716228646839,-489.746798,0.0002145,2]
[327559022,1716228646849,-201.194153,0.0002145,2]
[327559023,1716228646858,-201.194153,0.0002145,2]
[327559024,1716228646867,-151.0,0.0002145,2]
[327559025,1716228646876,-189.712844,0.0002145,2]
[327559026,1716228646886,-189.712844,0.0002145,2]
[327559027,1716228646895,-151.0,0.0002145,2]
[327559028,1716228646905,-253.821473,0.0002145,2]
[327559029,1716228646914,-253.821473,0.0002145,2]
[327559030,1716228646924,-151.0,0.0002145,2]
[327559031,1716228646933,-151.0,0.0002145,2]
[327559032,1716228646942,-151.0,0.0002145,2]
[327559033,1716228646952,-166.385137,0.0002145,2]
[327559034,1716228646962,-166.385137,0.0002145,2]
[327559035,1716228646972,-151.0,0.0002145,2]
[327559036,1716228646984,-195.449771,0.0002145,2]
[327559037,1716228646993,-151.0,0.0002145,2]
[327559038,1716228647002,-204.317187,0.0002145,2]
[327559039,1716228647011,-204.317187,0.0002145,2]
[327559040,1716228647020,-151.0,0.0002145,2]